Cogmind - Beta 17 @@@ ROGUE MODE // 2026.07.05 @ 23:42:04 Player: Petvaria Result: Destroyed by H-77 Assassin with Coil Gun Performance ------------- Evolutions (7) 3500 Regions Visited (20) 4000 Robots Destroyed (327) 1635 Value Destroyed (13657) 13657 Prototype IDs (17) 340 Alien Tech Used (0) 0 Bonus (28095) 28095 TOTAL SCORE: 51227 Bonus ------- High Alert Combat Kills 2978 Follower Combat Kills 2815 Prayed to X0-1V1 5000 Major X0-1V1 Interference 12300 Entered Garrisons 1000 Used RIF Installer 3500 Network Hubs Disabled 200 Built Enhanced Grunts 300 A7 Reached Mainframe 300 Met R17 at Cetus 500 Friendly Fire -798 Cogmind --------- Core Integrity 0/1425 Matter 266/300 Energy 98/100 System Corruption 1% Temperature Cool (0) Movement Core (50) Location -3/Quarantine Parts ------- > --- POWER (3) -------- (None) > --- PROPULSION (6) --- (None) > --- UTILITY (7) ------ (None) > --- WEAPON (5) ------- (None) > --- INVENTORY (5) ---- Improved Heavy Treads Huge Storage Unit Graphene Brace Improved Force Field Peak State ------------ > --- POWER ------------ Quantum Reactor Quantum Reactor > --- PROPULSION ------- Centrium Heavy Treads Centrium Heavy Treads Centrium Heavy Treads > --- UTILITY ---------- Huge Storage Unit Transmission Jammer Centrium Medium Armor Plating Relay Coupler [Sentry] X0-1V1's Piety Tracker > --- WEAPON ----------- Railgun Advanced KE Penetrator Advanced KE Penetrator Advanced KE Penetrator > --- INVENTORY -------- Quantum Reactor Centrium Heavy Treads Centrium Heavy Treads Cooling System Huge Storage Unit Advanced Phase Shifter Centrium Medium Armor Plating Centrium Medium Armor Plating Improved Remote Force Field Relay Coupler [NC] High-powered Tractor Beam Mobile Assembly Unit Heavy Beamcaster Long-range Proton Cannon Cooled Particle Cannon KE Penetrator Railgun Advanced KE Penetrator Precision Rocket Launcher Remote Datajack [Rating: 149] Favorites ----------- Power Deuterium Engine Engine Deuterium Engine Power Core Light Nuclear Core Reactor Heavy Antimatter Reactor Propulsion Light Treads Treads Light Treads Leg Armored Leg Wheel Armored Huge Wheel Hover Unit Improved Linear Gravjet Flight Unit Advanced Surge Thruster Utility Huge Storage Unit Device X0-1V1's Piety Tracker Storage Huge Storage Unit Processor Advanced Targeting Computer Hackware Relay Coupler [Sentry] Protection Improved Medium Armor Plating Weapon Gauss Rifle Energy Gun Medium Laser Energy Cannon Ion Cannon Ballistic Gun Gauss Rifle Ballistic Cannon Flak Cannon Launcher Precision Rocket Launcher Special Weapon Improved Remote Datajack Piercing Weapon Force Lance Special Melee Weapon Dirty Datajack Build | -11 -10 -10 -9 -8 -8 -8 -8 -7 -7 -6 -6 -5 -5 -5 -5 -5 -5 -4 -3 -3 ------- Run | Yrd Mat Min Mat Mat Gar Mat Gar Fac Gar Fac Gar Fac Ext Cet Arc Hub Gar Fac Res Qua Slots Evolved 14 | . . . 2 2 . . . 2 . 2 . 2 . . . . . 2 2 . Power 1 | . . . . . . . . . . . . . . . . . . 1 . . Propulsion 5 | . . . 1 . . . . . . 1 . 1 . . . . . 1 1 . Utility 5 | . . . 1 1 . . . 1 . . . 1 . . . . . . 1 . Weapon 3 | . . . . 1 . . . 1 . 1 . . . . . . . . . . Parts Attached 281 | 6 8 6 22 32 4 10 18 7 32 18 9 2 17 12 1 8 38 28 3 . Power 43 | 1 2 1 3 4 . 3 4 . 4 2 1 . 4 2 . 1 7 4 . . Engine 24 | 1 1 . 3 3 . 3 2 . 3 . . . 1 . . . 6 1 . . Core 12 | . 1 1 . 1 . . 2 . 1 1 1 . 3 . . . 1 . . . Reactor 7 | . . . . . . . . . . 1 . . . 2 . 1 . 3 . . Propulsion 77 | 2 . 1 9 10 1 4 6 . 4 7 1 1 7 4 . 1 6 11 2 . Treads 65 | 2 . 1 9 10 1 4 6 . 4 7 1 . 7 4 . 1 3 4 1 . Leg 1 | . . . . . . . . . . . . 1 . . . . . . . . Wheel 5 | . . . . . . . . . . . . . . . . . 3 2 . . Hover 5 | . . . . . . . . . . . . . . . . . . 4 1 . Flight 1 | . . . . . . . . . . . . . . . . . . 1 . . Utility 74 | 1 5 4 3 6 . 1 2 5 6 4 1 1 4 2 . 3 14 11 1 . Device 39 | . 2 2 . . . . 1 4 2 1 1 1 3 1 . 2 12 7 . . Storage 8 | 1 2 1 . 1 . 1 . . . 1 . . . . . . . 1 . . Processor 1 | . . . . . . . . . . . . . . . . . . . 1 . Hackware 7 | . . . . 1 . . . 1 1 1 . . . . . . . 3 . . Protection 19 | . 1 1 3 4 . . 1 . 3 1 . . 1 1 . 1 2 . . . Artifact . | . . . . . . . . . . . . . . . . . . . . . Weapon 87 | 2 1 . 7 12 3 2 6 2 18 5 6 . 2 4 1 3 11 2 . . Energy Gun 25 | 1 1 . 4 2 . . . . 9 2 2 . . 1 . . 3 . . . Energy Cannon 6 | . . . . 1 1 . . . . . . . . . . 1 3 . . . Ballistic Gun 44 | 1 . . 1 8 1 1 6 1 8 1 3 . 2 3 1 2 4 1 . . Ballistic Cannon 1 | . . . . . . . . . 1 . . . . . . . . . . . Launcher 7 | . . . 2 1 1 1 . . . 1 1 . . . . . . . . . Special Weapon 2 | . . . . . . . . 1 . . . . . . . . 1 . . . Impact Weapon . | . . . . . . . . . . . . . . . . . . . . . Slashing Weapon . | . . . . . . . . . . . . . . . . . . . . . Piercing Weapon 1 | . . . . . . . . . . . . . . . . . . 1 . . Special Melee Weapon 1 | . . . . . . . . . . 1 . . . . . . . . . . Unidentified Prototypes 15 | . 2 . 3 2 . 1 . . . 2 1 . . 3 . . . 1 . . Corrupted Parts 10 | . . . . . . . . . 1 1 . . . . . 1 4 3 . . System Corruption 45 | . . . . . . . . . 2 5 . . . . . 6 7 25 . . Parts Lost 90 | . . . 1 4 . . 2 1 11 11 . . 1 . . 14 14 24 5 2 Power 18 | . . . . 2 . . 1 . 2 . . . . . . 2 5 6 . . Propulsion 26 | . . . . . . . . . 4 6 . . . . . 1 4 7 4 . Utility 20 | . . . . . . . 1 1 2 2 . . 1 . . 7 1 2 1 2 Weapon 26 | . . . 1 2 . . . . 3 3 . . . . . 4 4 9 . . Highest Loss Streak 13 | . . . 1 3 . . 1 1 10 5 . . 1 . . 13 6 11 5 2 To Critical Strikes 4 | . . . . . . . . . 1 . . . . . . 1 2 . . . Average Backups 19 | 4 10 19 23 23 22 22 21 20 21 20 21 21 21 20 20 19 18 15 4 4 Power 1 | . 1 1 1 1 . 1 . 2 2 1 2 2 1 . 1 1 . . . . Propulsion 3 | 2 2 3 4 5 5 5 3 4 4 1 1 2 2 2 2 1 3 1 1 1 Utility 8 | . 3 9 10 8 8 8 8 6 7 7 8 8 9 8 9 8 8 10 3 3 Weapon 6 | . 3 4 6 7 7 7 7 7 7 8 9 7 8 7 7 6 4 2 . . Tool/Special . | . . . . . . . . . . . . . . . . . . . . . Unused Backups 82 | . 8 1 12 17 1 2 1 1 13 1 1 1 6 3 . . 5 6 2 1 Power 8 | . 1 . 1 . . 1 . . 2 . . . . . . . 1 2 . . Propulsion 22 | . 3 . 6 5 . . . . 5 . . . 3 . . . . . . . Utility 29 | . 2 1 5 5 . 1 1 1 1 1 . . 1 1 . . 3 4 1 1 Weapon 23 | . 2 . . 7 1 . . . 5 . 1 1 2 2 . . 1 . 1 . Tool/Special . | . . . . . . . . . . . . . . . . . . . . . Average Slot Usage (%) 92 | . 100 99 99 99 100 99 95 93 97 99 100 98 99 83 82 78 75 60 33 7 Engine 7 | . 13 4 10 15 9 13 12 7 6 1 . . 2 . . . 6 7 . . Core 4 | . . 9 1 2 9 4 5 7 6 6 6 5 6 3 . . 1 . . . Reactor 1 | . . . . . . . . . . 4 6 5 1 6 11 9 . 1 . . Treads 23 | . 28 28 33 26 27 27 30 23 20 25 26 23 27 17 17 17 7 2 2 . Wheel 1 | . . . . . . . . . . . . . . . . . 9 8 . . Device 10 | . 9 11 11 9 9 9 8 11 11 11 6 11 12 12 11 10 14 12 9 7 Storage 7 | . 14 14 11 9 9 9 9 7 7 6 6 5 5 5 5 5 5 3 . . Hackware 3 | . . . . . . . . 5 7 7 13 11 10 5 5 4 . 3 . . Protection 6 | . 4 2 9 8 9 9 9 7 6 5 6 5 4 5 5 5 4 . . . Energy Gun 6 | . 19 28 18 2 . . . . 5 3 4 11 7 4 . . 3 3 . . Energy Cannon 2 | . . . . 6 8 9 7 . . . 2 . . . . . 3 6 . . Ballistic Gun 13 | . 8 . 3 17 18 17 12 22 18 21 18 11 14 17 23 22 12 4 . . Peak Build Rating 149 | 6 23 24 37 47 50 48 49 59 64 81 79 89 105 146 147 149 130 109 68 21 Average Rating 61 | 5 10 21 31 42 47 46 44 50 56 75 74 85 89 137 146 141 99 75 56 17 On Entrance 61 | . 6 23 23 36 47 48 46 46 57 64 78 73 83 101 146 147 93 94 63 21 Avg Prop Armor Cover (%) 21 | . . . . . . . 6 . . 4 . 3 3 . . 8 . 21 32 . Naked Turns 67 | . . . . . . . . . . . . . . . . . . 56 . 11 Heaviest Build 163 | 11 39 96 104 118 115 120 119 118 124 137 129 130 152 163 154 154 158 161 3 3 Greatest Support 240 | 40 40 40 69 69 68 65 91 68 71 102 98 90 153 240 240 240 240 84 4 3 Greatest Overweight (x) 5 | . . 2 1 2 1 1 2 1 2 2 1 1 1 1 . . 2 5 . . Average Overweight (x) . | . . 1 1 1 1 1 1 1 1 1 1 1 . . . . . . . . Largest Inventory Capacity 25 | 8 15 25 25 25 25 25 25 25 25 25 25 25 25 25 25 25 25 25 5 5 Average Capacity 23 | 6 12 24 25 24 25 25 25 25 25 25 25 25 25 25 25 25 25 20 5 5 Most Carried 25 | 8 15 21 25 25 25 25 25 25 25 25 25 25 25 25 25 25 25 25 5 5 Average Carried 22 | 5 10 19 23 24 24 24 24 23 24 23 24 24 24 24 24 24 23 17 4 5 Final Capacity 25 | 8 15 25 25 25 25 25 25 25 25 25 25 25 25 25 25 25 25 5 5 5 Final Carried 25 | 8 15 20 25 25 25 25 25 25 25 25 25 25 25 25 25 17 24 5 5 5 Class Distribution -------------------- 33% | Scavenger-Tank 23% | Mutant 18% | Commander-Tank 11% | Tank 5% | Scientist-Tank 3% | Scientist-Mutant Dominant Class ---------------- Mutant | -10/Materials Mutant | -10/Mines Mutant | -9/Materials Tank | -8/Materials Scavenger-Tank | -8/Garrison Scavenger-Tank | -8/Materials Scientist-Mutant | -8/Garrison Scavenger-Tank | -7/Factory Scavenger-Tank | -7/Garrison Scavenger-Tank | -6/Factory Commander-Tank | -6/Garrison Commander-Tank | -5/Factory Commander-Tank | -5/Extension Commander-Tank | -5/Cetus Commander-Tank | -5/Archives Scavenger-Tank | -5/Hub_04(d) Scavenger-Tank | -5/Garrison Scavenger-Gunner | -4/Factory Mutant | -3/Research Mutant | -3/Quarantine Resources | -11 -10 -10 -9 -8 -8 -8 -8 -7 -7 -6 -6 -5 -5 -5 -5 -5 -5 -4 -3 -3 ----------- Run | Yrd Mat Min Mat Mat Gar Mat Gar Fac Gar Fac Gar Fac Ext Cet Arc Hub Gar Fac Res Qua Matter Collected 10956 | 272 95 60 316 963 302 325 827 184 1404 1001 666 47 1088 298 58 506 1687 587 270 . Remotely 1679 | . 65 . . . . . . . 664 381 . . . . . 218 351 . . . Salvage Created 14560 | 160 318 206 1311 1835 412 901 1088 184 993 1452 66 30 1265 121 . 1188 2002 1028 . . Parts 674 | 8 11 8 69 98 19 53 61 11 58 53 2 4 46 3 . 55 60 55 . . Haulers Intercepted 19 | . 2 . 6 3 . 6 . . . 1 . . . . . . . 1 . . Recyclers Shooed 15 | . . . . 3 . 1 . . . 6 . . 4 . . . . 1 . . Parts Field Recycled . | . . . . . . . . . . . . . . . . . . . . . Retrieved Matter . | . . . . . . . . . . . . . . . . . . . . . Parts Self-Destructed . | . . . . . . . . . . . . . . . . . . . . . Prevented . | . . . . . . . . . . . . . . . . . . . . . Parts Restored . | . . . . . . . . . . . . . . . . . . . . . Kills | -11 -10 -10 -9 -8 -8 -8 -8 -7 -7 -6 -6 -5 -5 -5 -5 -5 -5 -4 -3 -3 ------- Run | Yrd Mat Min Mat Mat Gar Mat Gar Fac Gar Fac Gar Fac Ext Cet Arc Hub Gar Fac Res Qua Combat Hostiles Destroyed 240 | . 6 5 25 33 8 11 28 3 30 16 . 1 16 2 . 15 25 16 . . Melee 1 | . . . . . . . 1 . . . . . . . . . . . . . Guns 151 | . 6 4 16 16 4 6 15 3 16 16 . 1 15 2 . 15 14 2 . . Cannons 39 | . . . . 8 3 5 7 . 8 . . . . . . . 4 4 . . AOE 42 | . . . 9 9 . . 4 . 6 . . . . . . . 5 9 . . Classes Destroyed 23 | 2 5 . 5 3 . . 3 . 1 1 . . 1 . . 1 1 . . . Worker 18 | . 1 . 3 3 . 3 . . . 2 . 1 . . . 3 . 2 . . Builder 20 | . . . 2 4 . 1 . . . 3 . . . . . 1 . 9 . . Tunneler 4 | 3 . . . . . . . . . . . . 1 . . . . . . . Hauler 19 | . 2 . 6 3 . 6 . . . 1 . . . . . . . 1 . . Recycler 14 | 1 1 . 1 6 . 1 . . . 1 . . 3 . . . . . . . Mechanic 2 | . . . . . . . . . . 1 . . . . . . . 1 . . Operator 5 | . 1 . . 2 . . . 1 . . . . . . . 1 . . . . Watcher 1 | . . . . 1 . . . . . . . . . . . . . . . . Swarmer 46 | . 3 . 4 11 . 2 7 . 11 . . 1 5 . . . 2 . . . Saboteur 3 | . . . . . . . 1 . . 1 . . . . . . . 1 . . Grunt 91 | . 3 5 13 12 2 2 5 2 14 11 . . 4 1 . 3 9 5 . . Brawler 5 | . . . 1 . 2 . . . . . . . . . . 2 . . . . Duelist 6 | . . . 1 1 1 . . . . 1 . . . . . 1 . 1 . . Protector 3 | . . . 1 . . . . . . . . . . . . 1 . 1 . . Sentry 44 | . . . 5 6 2 6 4 1 2 1 . . 6 . . 2 8 1 . . Demolisher 1 | . . . . . . . . . 1 . . . . . . . . . . . Specialist 2 | . . . . . . . 1 . 1 . . . . . . . . . . . Hunter 19 | . . . . 2 1 1 5 . . 1 . . . . . 1 3 5 . . Programmer 12 | . . . . . . . 5 . 1 2 . . . . . . 2 2 . . Heavy 2 | . . . . 1 . . . . . . . . . . . . . 1 . . Behemoth 2 | . . . . . . . . . . . . . 1 . . . 1 . . . Cetus Guard 1 | . . . . . . . . . . . . . . 1 . . . . . . Lightning 3 | . . . . . . . . . . . . . . . . 3 . . . . Assembled 1 | . . . . . . . . . . . . . . . . . 1 . . . Savage 1 | . . . . . . . . . . . . . . . . 1 . . . . Fireman 2 | . . . . . . . . . . . . . . . . 2 . . . . Infiltrator 1 | . . . . . . . . . . 1 . . . . . . . . . . Best Kill Streak 11 | 3 2 4 11 10 3 5 11 4 8 8 . 2 3 1 . 8 5 8 . . Combat Bots Only 11 | . 2 4 7 8 3 3 11 3 8 5 . 1 3 1 . 7 5 7 . . Max Kills in Single Turn 6 | 1 1 1 3 6 1 2 2 1 2 2 . 2 2 1 . 3 2 6 . . Gunslinging 1 | . . . . . . . 1 . . . . . 1 . . 1 . . . . Exploded 4 | . . . 3 4 . . 2 . 1 . . . . . . . 2 2 . . Melee 1 | . . . . . . . 1 . . . . . . . . . . . . . Uniques/NPCs Destroyed . | . . . . . . . . . . . . . . . . . . . . . Combat | -11 -10 -10 -9 -8 -8 -8 -8 -7 -7 -6 -6 -5 -5 -5 -5 -5 -5 -4 -3 -3 -------- Run | Yrd Mat Min Mat Mat Gar Mat Gar Fac Gar Fac Gar Fac Ext Cet Arc Hub Gar Fac Res Qua Hostile Shots Fired 2125 | . 31 26 81 161 33 35 146 48 239 224 . . 13 12 . 225 242 364 159 86 Missed 647 | . 7 8 25 42 7 14 39 22 70 65 . . 1 4 . 44 63 124 68 44 Hits 1478 | . 24 18 56 119 26 21 107 26 169 159 . . 12 8 . 181 179 240 91 42 Melee 20 | . . . 6 . . . 3 . . . . . . . . . . 11 . . Projectile 1458 | . 24 18 50 119 26 21 104 26 169 159 . . 12 8 . 181 179 229 91 42 AOE 4 | . . . . . . . . . 3 1 . . . . . . . . . . Critical Strikes 80 | . 1 1 4 8 1 1 1 . 3 4 . . 1 1 . 14 10 18 9 3 Actively Blocked 4 | . . . . . . . . . . . . . . . . . . 4 . . Part Disruptions 9 | . . . . . . . 1 . 1 4 . . . . . 2 1 . . . Damage Taken 26423 | . 275 246 830 1863 334 225 1375 276 2299 2651 . . 363 129 . 4367 3941 4701 1766 782 Core 4148 | . 49 43 66 134 50 16 165 11 339 104 . . 78 12 . 268 264 1115 745 689 Absorbed by Shields 163 | . . . . . 36 . . . . . . . 32 95 . . . . . . Ignored by Resistances 1228 | . . . 69 148 21 14 44 23 119 154 . . 16 5 . 82 232 146 139 16 Regen/Repaired (Parts) 802 | . 324 . . . . . . . 57 377 . . . . . . . 44 . . Core Remaining (%) 68 | 100 . 75 70 . . . 62 . 57 . 89 . . . . . 85 12 . . Volleys Fired 872 | 12 37 24 68 93 38 25 71 18 78 58 21 2 29 13 2 46 171 66 . . Largest 5 | 2 2 2 2 3 3 3 3 3 4 4 4 4 4 4 4 4 4 5 . . Hottest 386 | 70 100 100 106 111 111 116 113 90 220 211 121 224 229 249 138 140 239 386 . . Shots Fired 2100 | 24 74 48 135 253 70 75 150 44 195 188 31 5 105 37 8 174 330 154 . . Gun 1616 | 24 74 48 129 187 33 50 87 39 153 173 11 4 103 36 8 174 211 72 . . Cannon 394 | . . . . 56 37 25 58 2 30 8 7 . 2 1 . . 105 63 . . Launcher 56 | . . . 6 10 . . 5 . 6 3 . 1 . . . . 10 15 . . Special 34 | . . . . . . . . 3 6 4 13 . . . . . 4 4 . . Kinetic 1140 | 12 27 . 8 161 33 50 87 39 120 149 4 2 64 21 8 174 140 41 . . Thermal 830 | 12 47 48 121 82 37 25 58 2 40 32 14 2 41 16 . . 159 94 . . Explosive 53 | . . . 6 10 . . 5 . 6 . . 1 . . . . 10 15 . . Electromagnetic 43 | . . . . . . . . . 23 3 . . . . . . 17 . . . Robot Hit Streak 28 | 5 11 6 17 17 10 18 21 18 8 11 15 1 14 10 12 8 28 17 . . Robot Miss Streak 9 | 3 3 3 3 2 3 3 2 3 9 3 2 2 3 4 1 4 7 5 . . Penetration Max 1 | . . . . 1 1 1 . 1 1 1 . . 1 1 . 1 1 1 . . Secondary Targets 25 | . . . . 1 . . 2 2 . 8 . . 4 1 . 4 3 . . . Max Gunslinging Chain 1 | . . . . 1 . . 1 1 . 1 . . 1 1 . 1 1 . . . Shots Hit Robots 1314 | 15 50 30 101 167 30 42 93 30 104 116 28 1 73 26 6 113 206 83 . . Core Hits 696 | 6 17 12 60 83 14 24 44 10 76 66 8 2 41 16 . 57 79 81 . . Critical Kills 14 | . . . . . 1 . 1 . . 2 . . 1 1 . 6 1 1 . . Critical Parts Destroyed 25 | 1 . . . 2 1 1 . 1 1 2 . . 2 . . 10 4 . . . Critical Strikes 69 | 1 4 3 10 3 2 1 1 1 1 6 . . 4 2 . 18 7 5 . . Burn 26 | . 4 3 10 1 . . . . . 2 . . . 1 . . 1 4 . . Meltdown 3 | . . . . . 1 . 1 . . . . . . . . . . 1 . . Destroy 39 | 1 . . . 2 1 1 . 1 1 4 . . 4 1 . 18 5 . . . Corrupt 1 | . . . . . . . . . . . . . . . . . 1 . . . Melee Attacks . | . . . . . . . . . . . . . . . . . . . . . Impact . | . . . . . . . . . . . . . . . . . . . . . Slashing . | . . . . . . . . . . . . . . . . . . . . . Piercing . | . . . . . . . . . . . . . . . . . . . . . Sneak Attacks . | . . . . . . . . . . . . . . . . . . . . . Combat Hostiles . | . . . . . . . . . . . . . . . . . . . . . Follow-up Attacks . | . . . . . . . . . . . . . . . . . . . . . Damage Inflicted 36912 | 168 616 380 2239 4311 601 1115 2127 571 2646 3724 451 23 1963 850 149 3812 6475 4691 . . Guns 22100 | 168 554 371 1317 1993 348 596 1022 571 1477 3135 262 23 1963 850 149 3403 2905 993 . . Cannons 6463 | . . . . 845 253 458 853 . 268 . 189 . . . . . 2624 973 . . Explosions 7971 | . . . 864 1332 . . 252 . 901 576 . . . . . 393 946 2707 . . Melee . | . . . . . . . . . . . . . . . . . . . . . Ramming 378 | . 62 9 58 141 . 61 . . . 13 . . . . . 16 . 18 . . Kinetic 16603 | 68 130 . 71 1774 348 596 1022 571 1156 2851 63 . 1228 575 149 3403 2011 587 . . Thermal 11283 | 100 424 371 1246 1064 253 458 853 . 468 284 388 23 735 275 . . 2962 1379 . . Explosive 7208 | . . . 864 1332 . . 252 . 901 206 . . . . . . 946 2707 . . Electromagnetic 1342 | . . . . . . . . . 121 370 . . . . . 393 458 . . . Impact . | . . . . . . . . . . . . . . . . . . . . . Slashing . | . . . . . . . . . . . . . . . . . . . . . Piercing . | . . . . . . . . . . . . . . . . . . . . . Phasic 98 | . . . . . . . . . . . . . . . . . 98 . . . Highest Corruption 45 | . . . . 12 12 . 6 . 34 7 14 . 12 . . 25 45 41 . 1 Average Corruption 18 | . . . . 11 12 . 2 . 26 3 9 . 11 . . 16 34 22 . 1 Corruption Purged 3 | . . . . . . . . . . . . . 3 . . . . . . . Corruption Blocked . | . . . . . . . . . . . . . . . . . . . . . Effects 379 | . . . . 15 4 . 17 . 84 8 40 . 45 . . 10 123 32 . 1 Message Errors 91 | . . . . 7 . . 7 . 16 1 15 . 9 . . 2 30 3 . 1 Matter Fused 74 | . . . . . 1 . 4 . 17 3 9 . 10 . . 1 23 6 . . Heat Flow Errors 30 | . . . . 1 . . 2 . 10 2 2 . 7 . . . 4 2 . . Energy Discharges 41 | . . . . 1 1 . . . 12 1 6 . 6 . . 1 10 3 . . Parts Rejected 8 | . . . . 1 . . . . 2 . . . 1 . . . 3 1 . . Parts Fused 4 | . . . . . . . . . 2 . . . . . . . 2 . . . Data Loss (minor) 42 | . . . . . . . 1 . 11 . 3 . 5 . . 1 17 4 . . Data Loss (major) 14 | . . . . 1 . . 1 . 3 . 3 . 1 . . . 3 2 . . Misfires 14 | . . . . 3 1 . 1 . 1 1 . . 1 . . 1 4 1 . . Alerts 13 | . . . . 1 . . . . 2 . 2 . 3 . . . 5 . . . Misdirections 9 | . . . . . . . . . . . . . . . . . 2 7 . . Weapon Failures 39 | . . . . . 1 . 1 . 8 . . . 2 . . 4 20 3 . . Overload Shots 16 | . . . . . 1 . . 1 1 . . . 2 1 . . 10 . . . Effects 1 | . . . . . . . . . . . . . 1 . . . . . . . Short Circuit 1 | . . . . . . . . . . . . . 1 . . . . . . . Overflow Damage 223 | . . . 20 84 . . 4 . 19 23 . . . . . 3 56 14 . . Projectiles 29 | . . . . . . . 4 . 5 . . . . . . . 20 . . . Explosions 192 | . . . 20 82 . . . . 14 23 . . . . . 3 36 14 . . Melee 2 | . . . . 2 . . . . . . . . . . . . . . . . Knockbacks 15 | . . . 1 2 . 1 . . 11 . . . . . . . . . . . Impact 4 | . . . 1 2 . 1 . . . . . . . . . . . . . . Kinetic 8 | . . . . . . . . . 8 . . . . . . . . . . . Secondary 3 | . . . . . . . . . 3 . . . . . . . . . . . Self-Inflicted Damage 712 | . . . 44 64 . . . 62 . 191 . . . . . 100 113 138 . . Shots 17 | . . . 3 2 . . . 2 . 3 . . . . . 1 2 4 . . Rammed 40 | . 10 2 9 9 . 6 . . . 2 . . . . . 1 . 1 . . Targets Rammed 49 | . 12 2 11 11 . 9 . . . 2 . . . . . 1 . 1 . . Kicked . | . . . . . . . . . . . . . . . . . . . . . Crushed 9 | . 2 . 2 2 . 3 . . . . . . . . . . . . . . Highest Temperature 555 | 170 186 99 84 269 108 72 278 . 554 168 143 114 240 451 . 402 555 423 299 . Average Temperature 78 | 87 51 37 27 57 41 21 95 . 115 51 35 61 78 187 . 54 156 145 161 . Received Heat Transfer 5371 | . 75 159 306 792 77 81 198 96 525 741 . . 60 8 . 336 932 271 693 21 Effects 26 | . . . . 3 . . . . 3 . . . . 4 . . 11 5 . . Shutdowns 8 | . . . . . . . . . 2 . . . . 2 . . 2 2 . . Energy Bleed 4 | . . . . . . . . . . . . . . . . . 3 1 . . Interference 12 | . . . . 3 . . . . . . . . . 2 . . 5 2 . . Matter Decay 1 | . . . . . . . . . 1 . . . . . . . . . . . Short Circuit 1 | . . . . . . . . . . . . . . . . . 1 . . . Siege Activations 2 | . . . . . . . . . . . . . . 1 . 1 . . . . Total Turns 7 | . . . . . . . . . . . . . . 4 . 3 . . . . Longest Duration 4 | . . . . . . . . . . . . . . 4 . 3 . . . . Martial Activations . | . . . . . . . . . . . . . . . . . . . . . Shielding Activations . | . . . . . . . . . . . . . . . . . . . . . Robots Disrupted . | . . . . . . . . . . . . . . . . . . . . . Combat Hostiles . | . . . . . . . . . . . . . . . . . . . . . Robots Corrupted 3 | . . . . . . . . . . . . . . . . . 3 . . . Combat Hostiles 1 | . . . . . . . . . . . . . . . . . 1 . . . Parts Fried 3 | . . . . . . . . . 1 . . . . . . 1 . 1 . . Impact Corruptions 2 | . . . . 1 . . . . 1 . . . . . . . . . . . Robots Melted 8 | . . 1 2 . 1 . 1 . . . . . 1 . . . 1 1 . . Combat Hostiles 6 | . . 1 . . 1 . 1 . . . . . 1 . . . 1 1 . . Parts Melted 40 | . 4 4 16 . . . 3 . . 1 . . 2 1 . . 6 3 . . Heat Transferred 22145 | 296 1554 1332 4136 1998 370 740 1295 . 1020 831 709 50 1275 558 . . 3802 2179 . . Parts Sabotaged 11 | . . . . . . . 11 . . . . . . . . . . . . . Parts Stolen . | . . . . . . . . . . . . . . . . . . . . . Parts Stripped . | . . . . . . . . . . . . . . . . . . . . . Power Chain Reactions . | . . . . . . . . . . . . . . . . . . . . . Alert | -11 -10 -10 -9 -8 -8 -8 -8 -7 -7 -6 -6 -5 -5 -5 -5 -5 -5 -4 -3 -3 ------- Run | Yrd Mat Min Mat Mat Gar Mat Gar Fac Gar Fac Gar Fac Ext Cet Arc Hub Gar Fac Res Qua Maximum Alert Level 4 | . . . 2 2 2 1 3 2 4 2 3 2 1 . . 3 4 3 2 1 Low Security (%) 24 | 100 100 100 43 2 . 46 5 . . . . . 25 100 100 10 . . . . Level 1 20 | . . . 28 52 10 53 22 . 7 . 1 . 74 . . 16 . . . 100 Level 2 30 | . . . 28 44 89 . 30 100 32 100 78 100 . . . 34 . . 100 . Level 3 19 | . . . . . . . 42 . 55 . 19 . . . . 38 48 100 . . Level 4 5 | . . . . . . . . . 4 . . . . . . . 51 . . . Level 5 . | . . . . . . . . . . . . . . . . . . . . . High Security . | . . . . . . . . . . . . . . . . . . . . . Max Security . | . . . . . . . . . . . . . . . . . . . . . Peak Influence 1519 | 5 105 110 602 669 636 320 1033 571 1178 699 923 580 354 176 127 1091 1519 1010 603 333 Initial 797 | . 3 . 36 233 317 310 147 541 351 618 352 484 238 154 31 30 731 797 526 333 Average 479 | 1 13 13 233 407 537 201 612 534 757 614 575 511 228 89 95 624 1115 879 548 313 Influence Increases 11634 | 20 254 150 934 1083 319 441 926 91 937 446 571 163 904 362 146 1653 1068 869 297 . Destroy 0b10 Robot/C 5040 | . 120 100 480 660 160 220 525 45 495 270 . 60 360 165 60 510 495 255 60 . Destroy 0b10 Robot/NC 460 | 20 25 . 65 95 . 55 . 4 4 36 4 4 24 . . 40 20 60 4 . Destroy Leader 798 | . 34 20 112 148 10 102 20 16 24 60 . 8 42 8 . 120 24 42 8 . Allied During Kill 1379 | . . . . . . . 2 . 33 10 4 72 422 173 60 503 47 32 21 . Successful Hack 126 | . 29 . . 33 28 15 . . . . . 3 18 . . . . . . . Disable Machine 522 | . . . 15 75 60 . . 24 . 48 . . 24 12 24 144 48 48 . . Anti-Garrison Action 1380 | . . . . . 50 . 239 . 340 . 563 . . . . . 188 . . . Destroy Structure 965 | . 1 . 29 72 11 4 83 2 41 22 . 16 14 4 2 336 138 190 . . Partial Spotted 51 | . . . . . . . 15 . . . . . . . . . . 12 24 . Lose Combat Pursuer 591 | . 45 30 45 . . 45 42 . . . . . . . . . 108 96 180 . Miscellaneous 322 | . . . 188 . . . . . . . . . . . . . . 134 . . Influence Decreases 11361 | 15 259 56 475 1148 171 850 120 622 261 1120 152 599 1115 560 137 695 594 1384 708 320 Entered New Map 5000 | . 2 . 58 320 171 326 80 492 151 560 152 439 249 122 47 57 314 722 478 260 Time Decay 4153 | 15 257 56 407 638 . 374 . 120 . 410 . 160 586 260 50 278 . 362 140 40 Lost Part 900 | . . . 10 40 . . 20 10 110 110 . . 10 . . 140 140 240 50 20 Lost Ally 858 | . . . . . . . 20 . . 40 . . 120 178 40 220 140 60 40 . Purge Threat 450 | . . . . 150 . 150 . . . . . . 150 . . . . . . . Squads Dispatched 45 | . 1 . 2 3 . 1 . 1 . 7 . 1 4 1 . 11 . 9 3 1 Investigation 7 | . . . 1 1 . 1 . . . . . . 2 1 . . . . 1 . Extermination 4 | . . . . . . . . . . 1 . 1 . . . . . 2 . . Reinforcement 22 | . 1 . . 2 . . . 1 . 6 . . 1 . . 4 . 4 2 1 Assault 5 | . . . 1 . . . . . . . . . 1 . . . . 3 . . Garrison 7 | . . . . . . . . . . . . . . . . 7 . . . . Intercept . | . . . . . . . . . . . . . . . . . . . . . Searches Triggered . | . . . . . . . . . . . . . . . . . . . . . Construction Impeded 6 | . . . . . . . . . . 3 . . . . . 1 . 2 . . Haulers Reinforced 4 | . . . . . . . . . . 2 . . . . . . . 1 1 . Active Scanning Responses . | . . . . . . . . . . . . . . . . . . . . . Cargo Convoy Interrupts 1 | . . . . . . . . . . 1 . . . . . . . . . . Stealth | -11 -10 -10 -9 -8 -8 -8 -8 -7 -7 -6 -6 -5 -5 -5 -5 -5 -5 -4 -3 -3 --------- Run | Yrd Mat Min Mat Mat Gar Mat Gar Fac Gar Fac Gar Fac Ext Cet Arc Hub Gar Fac Res Qua Distress Signals 35 | . . . 1 8 . 3 . . . 2 . . 3 2 . 5 2 1 6 2 Communications Jammed 60 | . . . . . . . . . . . . . . . . 53 . 7 . . Distress Signals 60 | . . . . . . . . . . . . . . . . 53 . 7 . . Times Spotted 511 | . 23 8 39 60 11 24 33 4 35 36 . 1 26 13 2 44 47 50 39 16 Peak Tracking Total 18 | . 4 3 8 8 5 6 6 3 8 11 . 1 4 5 1 10 5 9 18 17 Tactical Retreats 31 | . 2 2 3 . . 3 3 . . . . . . . . . 9 4 5 . Traps | -11 -10 -10 -9 -8 -8 -8 -8 -7 -7 -6 -6 -5 -5 -5 -5 -5 -5 -4 -3 -3 ------- Run | Yrd Mat Min Mat Mat Gar Mat Gar Fac Gar Fac Gar Fac Ext Cet Arc Hub Gar Fac Res Qua Traps Triggered 22 | . . . 2 3 2 . 4 . 3 . . . . . . 1 4 2 . 1 Indirectly 1 | . . . . . . . . . . . . . . . . 1 . . . . Trap Hack Attempts . | . . . . . . . . . . . . . . . . . . . . . Triggered . | . . . . . . . . . . . . . . . . . . . . . Disarmed . | . . . . . . . . . . . . . . . . . . . . . Reprogrammed . | . . . . . . . . . . . . . . . . . . . . . Reused . | . . . . . . . . . . . . . . . . . . . . . Traps Extracted . | . . . . . . . . . . . . . . . . . . . . . Installed . | . . . . . . . . . . . . . . . . . . . . . Triggered . | . . . . . . . . . . . . . . . . . . . . . Machines | -11 -10 -10 -9 -8 -8 -8 -8 -7 -7 -6 -6 -5 -5 -5 -5 -5 -5 -4 -3 -3 ---------- Run | Yrd Mat Min Mat Mat Gar Mat Gar Fac Gar Fac Gar Fac Ext Cet Arc Hub Gar Fac Res Qua Machines Disabled 53 | . . . 1 5 5 . 6 2 4 4 . . 2 1 2 12 5 4 . . Max in Single Turn 9 | . . . 1 3 1 . 2 2 1 1 . . 1 1 1 9 1 2 . . Garrison Relay 8 | . . . . . 1 . 3 . 3 . . . . . . . 1 . . . Phase Generator 2 | . . . . . . . 1 . . . 1 . . . . . . . . . Network Hub 1 | . . . . . . . . . . . . . . . . 1 . . . . Machines Repaired . | . . . . . . . . . . . . . . . . . . . . . Machines Dismantled . | . . . . . . . . . . . . . . . . . . . . . Machines Sabotaged . | . . . . . . . . . . . . . . . . . . . . . Overloaded Fab Kills . | . . . . . . . . . . . . . . . . . . . . . Hacking | -11 -10 -10 -9 -8 -8 -8 -8 -7 -7 -6 -6 -5 -5 -5 -5 -5 -5 -4 -3 -3 --------- Run | Yrd Mat Min Mat Mat Gar Mat Gar Fac Gar Fac Gar Fac Ext Cet Arc Hub Gar Fac Res Qua Machines Accessed 47 | . 8 . 3 8 2 4 1 1 2 2 1 1 7 1 . 2 . 3 1 . Terminals 32 | . 7 . 2 5 2 1 1 . 2 . 1 1 7 1 . 1 . . 1 . Fabricators 3 | . . . . . . . . . . 1 . . . . . . . 2 . . Repair Stations 2 | . 1 . . 1 . . . . . . . . . . . . . . . . Recycling Units . | . . . . . . . . . . . . . . . . . . . . . Scanalyzers 5 | . . . 1 1 . 2 . . . . . . . . . . . 1 . . Garrison Access 5 | . . . . 1 . 1 . 1 . 1 . . . . . 1 . . . . Total Hacks 103 | . 20 . 9 18 5 10 1 1 6 2 3 2 12 2 . 2 . 8 2 . Successful 47 | . 11 . 3 7 2 7 . 1 . 1 1 1 5 . . 2 . 4 2 . Failed 56 | . 9 . 6 11 3 3 1 . 6 1 2 1 7 2 . . . 4 . . Catastrophic 9 | . . . 1 1 . . 1 . 1 1 1 . 2 1 . . . . . . Database Lockouts . | . . . . . . . . . . . . . . . . . . . . . Manual 40 | . 18 . 4 10 1 1 . . . . . . . 1 . 1 . 2 2 . Terminals 72 | . 17 . 7 12 5 2 1 . 6 . 3 2 12 2 . 1 . . 2 . Fabricators 6 | . . . . . . . . . . 1 . . . . . . . 5 . . Repair Stations 4 | . 3 . . 1 . . . . . . . . . . . . . . . . Recycling Units . | . . . . . . . . . . . . . . . . . . . . . Scanalyzers 16 | . . . 2 4 . 7 . . . . . . . . . . . 3 . . Garrison Access 5 | . . . . 1 . 1 . 1 . 1 . . . . . 1 . . . . Terminal Hacks 15 | . 2 . 1 1 2 1 . . . . 1 1 5 . . . . . 1 . Part Schematic 1 | . 1 . . . . . . . . . . . . . . . . . . . Robot Schematic 1 | . 1 . . . . . . . . . . . . . . . . . . . Open Door 5 | . . . . . . . . . . . . 1 4 . . . . . . . Branch Access Points 1 | . . . . . . . . . . . . . . . . . . . 1 . Emergency Access Points 1 | . . . . . 1 . . . . . . . . . . . . . . . Unreport Threat 3 | . . . . 1 . 1 . . . . . . 1 . . . . . . . Hauler Manifests 1 | . . . 1 . . . . . . . . . . . . . . . . . Garrison Registry 2 | . . . . . 1 . . . . . 1 . . . . . . . . . Fabricator Hacks 2 | . . . . . . . . . . . . . . . . . . 2 . . Network Status 1 | . . . . . . . . . . . . . . . . . . 1 . . Build 1 | . . . . . . . . . . . . . . . . . . 1 . . Repair Station Hacks 3 | . 3 . . . . . . . . . . . . . . . . . . . Scan Component 2 | . 2 . . . . . . . . . . . . . . . . . . . Repair 1 | . 1 . . . . . . . . . . . . . . . . . . . Recycling Unit Hacks . | . . . . . . . . . . . . . . . . . . . . . Scanalyzer 10 | . . . 2 3 . 4 . . . . . . . . . . . 1 . . Retrieve Study 10 | . . . 2 3 . 4 . . . . . . . . . . . 1 . . Garrison Access Hacks 5 | . . . . 1 . 1 . 1 . 1 . . . . . 1 . . . . Unlock Access 5 | . . . . 1 . 1 . 1 . 1 . . . . . 1 . . . . Unauthorized Hacks 12 | . 6 . . 2 . 1 . . . . . . . . . 1 . 1 1 . Terminals 11 | . 6 . . 2 . 1 . . . . . . . . . 1 . . 1 . Botnet 11 | . 6 . . 2 . 1 . . . . . . . . . 1 . . 1 . Fabricators 1 | . . . . . . . . . . . . . . . . . . 1 . . Prioritize 1 | . . . . . . . . . . . . . . . . . . 1 . . Repair Stations . | . . . . . . . . . . . . . . . . . . . . . Recycling Units . | . . . . . . . . . . . . . . . . . . . . . Scanalyzers . | . . . . . . . . . . . . . . . . . . . . . Garrison Access . | . . . . . . . . . . . . . . . . . . . . . Data Cores Recovered 1 | . . . . . . . . . . . . . . . . 1 . . . . Used . | . . . . . . . . . . . . . . . . . . . . . Hacking Detections 35 | . 5 . 3 7 1 3 1 1 2 2 1 1 5 1 . . . 2 . . Full Trace Events 5 | . . . . . . . . . 2 . 1 . 2 . . . . . . . Feedback Events 1 | . . . . . . . . . 1 . . . . . . . . . . . Corruption 1 | . . . . . . . . . 1 . . . . . . . . . . . Feedback Blocked . | . . . . . . . . . . . . . . . . . . . . . Robot Schematics Acquired 1 | . 1 . . . . . . . . . . . . . . . . . . . Robots Built . | . . . . . . . . . . . . . . . . . . . . . Authchips . | . . . . . . . . . . . . . . . . . . . . . Time . | . . . . . . . . . . . . . . . . . . . . . Total Robot Build Rating . | . . . . . . . . . . . . . . . . . . . . . Part Schematics Acquired 1 | . 1 . . . . . . . . . . . . . . . . . . . Parts Built 2 | . . . . . . . . . . . . . . . . . . 2 . . Authchips . | . . . . . . . . . . . . . . . . . . . . . Time 139 | . . . . . . . . . . . . . . . . . . 139 . . Total Part Build Rating 18 | . . . . . . . . . . . . . . . . . . 18 . . Part Studies Acquired 10 | . . . 2 3 . 4 . . . . . . . . . . . 1 . . Parts Repaired 1 | . 1 . . . . . . . . . . . . . . . . . . . Time 26 | . 26 . . . . . . . . . . . . . . . . . . . Parts Recycled . | . . . . . . . . . . . . . . . . . . . . . Recycled Matter . | . . . . . . . . . . . . . . . . . . . . . Retrieved Matter . | . . . . . . . . . . . . . . . . . . . . . Retrieved Components . | . . . . . . . . . . . . . . . . . . . . . Parts Scanalyzed . | . . . . . . . . . . . . . . . . . . . . . Part Schematics Acquired . | . . . . . . . . . . . . . . . . . . . . . Parts Damaged . | . . . . . . . . . . . . . . . . . . . . . Bothacking | -11 -10 -10 -9 -8 -8 -8 -8 -7 -7 -6 -6 -5 -5 -5 -5 -5 -5 -4 -3 -3 ------------ Run | Yrd Mat Min Mat Mat Gar Mat Gar Fac Gar Fac Gar Fac Ext Cet Arc Hub Gar Fac Res Qua Used RIF Installer 7 | . . . . . 1 . 2 . 2 . 1 . . . . . 1 . . . Hotswap 1 | . . . . . . . . . . . 1 . . . . . . . . . Code Merge 1 | . . . . . . . . . 1 . . . . . . . . . . . Command Fork 1 | . . . . . . . 1 . . . . . . . . . . . . . Threat Obfuscator 1 | . . . . . . . 1 . . . . . . . . . . . . . Robot Detection 1 | . . . . . . . . . 1 . . . . . . . . . . . Watcher Feeds 1 | . . . . . . . . . . . . . 1 . . . . . . . Alert ID Control 1 | . . . . . . . . . . . . . . . . . 1 . . . Robots Hacked 6 | . . . . . . . . 1 1 2 . . . . . . . 2 . . Non-combat 3 | . . . . . . . . . 1 1 . . . . . . . 1 . . Combat 3 | . . . . . . . . 1 . 1 . . . . . . . 1 . . Robot Hacks Applied 6 | . . . . . . . . 1 1 2 . . . . . . . 2 . . find_garrison 2 | . . . . . . . . 1 . 1 . . . . . . . . . . amplify_resonance 1 | . . . . . . . . . . . . . . . . . . 1 . . formatsys_low 3 | . . . . . . . . . 1 1 . . . . . . . 1 . . Relay Couplers Released 32 | . . . . . 4 . 11 . 13 . . . . . . . 4 . . . Machine Destruction 32 | . . . . . 4 . 11 . 13 . . . . . . . 4 . . . Attached 5 | . . . . . . . . 1 1 1 . . . . . . . 2 . . Fabnet Peak Effective % . | . . . . . . . . . . . . . . . . . . . . . Robots Rewired 36 | . . . . . . . . . 2 . 12 . 13 . . . 9 . . . Allies Hacked 2 | . . . . . . . . . . 1 . . . . . . . 1 . . Hacks Repelled . | . . . . . . . . . . . . . . . . . . . . . Allies | -11 -10 -10 -9 -8 -8 -8 -8 -7 -7 -6 -6 -5 -5 -5 -5 -5 -5 -4 -3 -3 -------- Run | Yrd Mat Min Mat Mat Gar Mat Gar Fac Gar Fac Gar Fac Ext Cet Arc Hub Gar Fac Res Qua Total Allies 66 | . . . . . . . 1 . 5 2 12 . 23 5 . . 10 5 3 . Largest Group 27 | . . . . . . . 1 . 5 4 12 12 27 26 19 16 3 3 3 . Highest-Rated Group 1111 | . . . . . . . 31 . 266 234 394 394 903 1111 959 760 123 162 150 . Highest-Rated Ally 159 | . . . . . . . 31 . 95 95 46 46 159 159 159 96 79 54 50 . Total Orders 14 | . . . . . . . . . 6 3 2 2 . . . . . 1 . . STAY 6 | . . . . . . . . . 3 1 1 1 . . . . . . . . FOLLOW 5 | . . . . . . . . . 2 1 1 1 . . . . . . . . AID 3 | . . . . . . . . . 1 1 . . . . . . . 1 . . Ally Attacks 432 | . . . . . . . 3 . 20 15 . 9 80 56 16 143 49 17 24 . Total Damage 13385 | . . . . . . . 48 . 922 509 . 185 2281 1323 541 4141 1925 541 969 . Kills 82 | . . . . . . . 1 . 3 4 . 3 12 9 4 27 9 4 6 . Allies Corrupted 3 | . . . . . . . . . . . . . 1 . . 2 . . . . Allies Melted 1 | . . . . . . . . . . . . . . . . 1 . . . . Fabricated Assembled 1 | . . . . . . . . . . . . . . . . . 1 . . . X0-1V1 Amusement Gains 287 | . 12 . 10 10 . . 50 15 27 . . . 10 . . 88 . 5 . 60 Good Acts 78 | . 1 1 5 7 4 2 5 . 3 6 3 . 5 2 . 2 10 11 9 2 Bad Acts 96 | . . 2 6 10 1 2 7 . 12 6 2 . 6 2 . 7 8 19 5 1 Intel | -11 -10 -10 -9 -8 -8 -8 -8 -7 -7 -6 -6 -5 -5 -5 -5 -5 -5 -4 -3 -3 ------- Run | Yrd Mat Min Mat Mat Gar Mat Gar Fac Gar Fac Gar Fac Ext Cet Arc Hub Gar Fac Res Qua Active Infowar (turns) 1409 | . . . . . . . . . . 54 . 72 1035 . . 217 . 31 . . Traps 1161 | . . . . . . . . . . 54 . 72 1035 . . . . . . . Jamming 248 | . . . . . . . . . . . . . . . . 217 . 31 . . Robot Analysis Total . | . . . . . . . . . . . . . . . . . . . . . Derelict Logs Recovered 3 | . . 3 . . . . . . . . . . . . . . . . . . Drone Launches . | . . . . . . . . . . . . . . . . . . . . . Drone Recoveries . | . . . . . . . . . . . . . . . . . . . . . Exploration | -11 -10 -10 -9 -8 -8 -8 -8 -7 -7 -6 -6 -5 -5 -5 -5 -5 -5 -4 -3 -3 ------------- Run | Yrd Mat Min Mat Mat Gar Mat Gar Fac Gar Fac Gar Fac Ext Cet Arc Hub Gar Fac Res Qua Turns Passed 20915 | 159 1679 743 1722 2271 745 878 1393 257 1880 988 1529 326 1835 585 102 616 2008 834 285 80 Spaces Moved 9442 | 79 922 220 616 801 302 344 553 93 690 312 621 144 658 218 43 257 1048 854 507 160 Core 469 | 18 . . . . . . . . . . . . . . . . . 142 149 160 Treads 7131 | 61 922 220 616 801 302 344 553 93 690 312 621 144 658 218 43 257 271 5 . . Legs . | . . . . . . . . . . . . . . . . . . . . . Wheels 1128 | . . . . . . . . . . . . . . . . . 777 351 . . Hover 4 | . . . . . . . . . . . . . . . . . . 4 . . Flight 710 | . . . . . . . . . . . . . . . . . . 352 358 . Fastest Speed 22 | 50 160 160 200 200 208 195 195 195 195 210 210 210 160 160 160 160 115 22 25 50 Average Speed 171 | 134 160 291 217 216 208 204 195 195 213 217 216 210 214 161 160 160 130 69 39 50 Slowest Speed 410 | 160 160 320 240 240 208 208 232 195 280 280 220 210 224 240 160 160 240 410 85 50 Overloaded Moves 10 | . . . . . . . . . . . . . . . . . . 10 . . Propulsion Burnouts . | . . . . . . . . . . . . . . . . . . . . . Robots Hopped 14 | . . . . . . . . . . . . . . . . . . 5 9 . Potential Cave-ins 12 | . . . . . . . . . . 4 . . . . . . 3 5 . . Cave-ins Triggered . | . . . . . . . . . . . . . . . . . . . . . Exploration Rate (%) 47 | 4 94 46 67 64 52 47 57 3 71 12 66 4 81 71 66 35 77 32 22 18 Regions Visited 20 Branch Regions 6 Pre-discovered Areas 1 | . . 1 . . . . . . . . . . . . . . . . . . Known Exits Taken 7 | . . . . 1 . 1 . 1 . 1 . . . . . 1 . 1 1 . Unknown Exits Taken 8 | 1 1 1 1 . . . . . . . . 1 1 1 1 . . . . . Scrap Searched . | . . . . . . . . . . . . . . . . . . . . . Spaces Dug 46 | . . . . 2 1 . . 1 1 3 . 11 . . . . . 27 . . Terrain Destroyed 764 | . . . 29 80 3 2 120 1 40 19 3 11 5 2 1 211 109 128 . . Melee . | . . . . . . . . . . . . . . . . . . . . . Projectile 159 | . . . . 7 3 2 3 1 10 19 3 . 5 2 1 51 22 30 . . AOE 605 | . . . 29 73 . . 117 . 30 . . 11 . . . 160 87 98 . . Terrain Rammed . | . . . . . . . . . . . . . . . . . . . . . Walls Destroyed . | . . . . . . . . . . . . . . . . . . . . . Machines Disabled . | . . . . . . . . . . . . . . . . . . . . . Actions | -11 -10 -10 -9 -8 -8 -8 -8 -7 -7 -6 -6 -5 -5 -5 -5 -5 -5 -4 -3 -3 --------- Run | Yrd Mat Min Mat Mat Gar Mat Gar Fac Gar Fac Gar Fac Ext Cet Arc Hub Gar Fac Res Qua Total 12635 | 110 1056 272 867 1155 361 460 748 138 967 487 780 163 1013 430 72 347 1458 1007 584 160 Wait 888 | . 48 6 88 89 3 49 41 . 53 44 25 9 135 137 24 27 25 17 68 . Move 9400 | 78 921 219 615 800 301 344 552 93 689 312 620 143 657 217 42 257 1047 843 490 160 Hop 12 | . . . . . . . . . . . . . . . . . . 5 7 . Pick Up 339 | 14 18 10 30 53 5 4 24 8 40 18 5 3 11 17 1 1 53 20 4 . Fast Attach 86 | . 1 . 2 13 1 5 7 1 10 4 5 . 9 5 1 1 8 10 3 . Attach 165 | 6 1 1 6 12 . . 18 6 17 15 . 2 1 4 . 9 41 23 3 . Detach 21 | . . . . . . . 1 1 . 1 . . . . . 1 12 4 1 . Swap 207 | . 6 6 15 24 5 8 11 6 33 24 7 3 14 12 . 4 19 10 . . Drop 321 | . 12 4 32 60 6 16 19 5 40 9 12 1 26 25 2 . 37 7 8 . Fire 872 | 12 37 24 68 93 38 25 71 18 78 58 21 2 29 13 2 46 171 66 . . Melee . | . . . . . . . . . . . . . . . . . . . . . Ram 2 | . . . . . . . . . . . . . . . . . . 2 . . Kick . | . . . . . . . . . . . . . . . . . . . . . Crush 48 | . 12 2 11 11 . 9 . . . 2 . . . . . 1 . . . . Escape Stasis 12 | . . . . . 2 . 4 . 6 . . . . . . . . . . . Rewire 262 | . . . . . . . . . 1 . 85 . 131 . . . 45 . . . Trap . | . . . . . . . . . . . . . . . . . . . . . Miscellaneous . | . . . . . . . . . . . . . . . . . . . . . Route ------- -11/Scrapyard -10/Materials (discovered 5 exits: *Mat x3 / [*Min] / *Sub) -10/Mines (discovered 2 exits: *Mat / Sub) -9/Materials (discovered 4 exits: *Mat x2 / [*Min x2]) -8/Materials (discovered 2 exits: *Fac / Gar) -8/Garrison (discovered 3 exits: *Mat x3) -8/Materials (discovered 3 exits: *Fac x2 / Gar) -8/Garrison (discovered 2 exits: *Fac x2) -7/Factory -7/Garrison (discovered 3 exits: *Fac x3) -6/Factory (discovered 2 exits: *Fac / Gar) -6/Garrison (discovered 3 exits: *Fac x3) -5/Factory -5/Extension (discovered 2 exits: *Fac / *Cet) -5/Cetus (discovered 2 exits: *Fac / [*Arc]) -5/Archives -5/Hub_04(d) (discovered 3 exits: *Fac x2 / Gar) -5/Garrison (discovered 3 exits: *Fac x3) -4/Factory (discovered 3 exits: *Res x2 / [*Upp]) -3/Research (discovered 3 exits: Arm / *Qua x2) -3/Quarantine History --------- Turn | Location | Event 11 | -11/Scrapyard | Discovered new exit (range 15) 160 | -11/Scrapyard | Entered Materials 314 | -10/Materials | Build established: Mutant 319 | -10/Materials | Discovered new exit (range 13) 374 | -10/Materials | Discovered new exit (range 15) 754 | -10/Materials | Discovered new exit (range 14) 905 | -10/Materials | Discovered new exit (range 16) 1442 | -10/Materials | Repaired Huge Storage Unit 1709 | -10/Materials | Discovered new exit (range 8) 1720 | -10/Materials | Prayed at D.C.S.S. Altar Unit 1806 | -10/Materials | Heat dissipation permanently improved by X0-1V1 (+15; -75 max core) 1839 | -10/Materials | Entered Mines 1862 | -10/Mines | Identified exit to Subcaves 1897 | -10/Mines | Joined a pair of Derelicts in attacking an 0b10 outpost 2010 | -10/Mines | Learned Materials terminal intel 2195 | -10/Mines | Learned location of Mines (-9) 2565 | -10/Mines | Discovered new exit (range 6) 2582 | -10/Mines | Entered Materials 2582 | -9/Materials | Evolved 2 slots: Propulsion x1, Utility x1 2583 | -9/Materials | Loaded intel: 12 terminal locations 2705 | -9/Materials | TH resistance permanently improved by X0-1V1 (+10%; -100 max core) 3042 | -9/Materials | Discovered new exit (range 7) 3136 | -9/Materials | Discovered new exit (range 15) 3270 | -9/Materials | Destroyed 7 combat bots 3350 | -9/Materials | Discovered new exit (range 15) 3568 | -9/Materials | X0-1V1 foreshadows a heat wave 3758 | -9/Materials | Ambient heat levels rising (+10) 3820 | -9/Materials | X0-1V1 added 0b10 threat records associated with you (considerable) 4064 | -9/Materials | X0-1V1 mutated your Utility slot to Power slot 4110 | -9/Materials | Ambient heat levels rising (+10) 4285 | -9/Materials | Discovered new exit (range 9) 4304 | -9/Materials | Entered another Materials area 4304 | -8/Materials | Evolved 2 slots: Utility x1, Weapon x1 4610 | -8/Materials | Build established: Tank 4843 | -8/Materials | Lost 3 parts (1p2w) 5120 | -8/Materials | Discovered new exit (range 16) 5427 | -8/Materials | Core integrity permanently improved by X0-1V1 (+300) 5672 | -8/Materials | X0-1V1 enhanced Transport squad support 6054 | -8/Materials | Found Mobile Assembly Unit 6065 | -8/Materials | Destroyed 8 combat bots 6225 | -8/Materials | System corruption reached 10% 6555 | -8/Materials | Identified exit to Garrison 6575 | -8/Materials | Entered Garrison 6614 | -8/Garrison | Triggered checkpoint 6656 | -8/Garrison | Garrison Relay disabled 6775 | -8/Garrison | Triggered checkpoint 6841 | -8/Garrison | Triggered checkpoint 7044 | -8/Garrison | Discovered new exit (range 8) 7056 | -8/Garrison | Discovered new exit (range 82) 7056 | -8/Garrison | Discovered new exit (range 56) 7056 | -8/Garrison | Discovered new exit (range 7) 7175 | -8/Garrison | Build established: Scavenger-Tank 7268 | -8/Garrison | Installed Relay Interface Framework 7309 | -8/Garrison | Core integrity restored by X0-1V1 (+114) 7320 | -8/Garrison | Entered Materials 7484 | -8/Materials | Met 7R-MNS 7558 | -8/Materials | Discovered new exit (range 6) 8052 | -8/Materials | X0-1V1 redirected Transport squads to designated parking area 8175 | -8/Materials | Discovered new exit (range 15) 8198 | -8/Materials | Identified exit to Garrison 8198 | -8/Materials | Entered Garrison 8228 | -8/Garrison | Build established: Scientist-Tank 8240 | -8/Garrison | Triggered checkpoint 8304 | -8/Garrison | Garrison Relay disabled 8409 | -8/Garrison | Triggered checkpoint 8472 | -8/Garrison | Triggered checkpoint 8562 | -8/Garrison | Triggered checkpoint 8566 | -8/Garrison | Rescued a captive Derelict 8568 | -8/Garrison | Rescued a captive Derelict 8632 | -8/Garrison | Destroyed 11 combat bots 8726 | -8/Garrison | X0-1V1 mutated your Weapon slot to Propulsion slot 8860 | -8/Garrison | Discovered new exit (range 11) 8931 | -8/Garrison | Expanded RIF knowledge: Threat Obfuscation 8981 | -8/Garrison | Garrison Relay disabled 9093 | -8/Garrison | Garrison Relay disabled 9215 | -8/Garrison | Phase Generator disabled 9228 | -8/Garrison | Triggered checkpoint 9245 | -8/Garrison | Build established: Scientist-Mutant 9251 | -8/Garrison | X0-1V1 mutated your Propulsion slot to Utility slot 9334 | -8/Garrison | Discovered new exit (range 20) 9488 | -8/Garrison | X0-1V1 sent hostile H-55 Commando (x3) 9509 | -8/Garrison | Expanded RIF knowledge: Command Fork 9591 | -8/Garrison | Entered Factory 9591 | -7/Factory | Evolved 2 slots: Utility x1, Weapon x1 9848 | -7/Factory | Identified exit to Garrison 9848 | -7/Factory | Entered Garrison 9860 | -7/Garrison | X0-1V1 mutated your Utility slot to Weapon slot 9981 | -7/Garrison | Triggered checkpoint 10029 | -7/Garrison | Destroyed 8 combat bots 10073 | -7/Garrison | X0-1V1 sent you into danger 10078 | -7/Garrison | Triggered checkpoint 10089 | -7/Garrison | X0-1V1 upgraded hostiles (x3) 10120 | -7/Garrison | Garrison Relay disabled 10137 | -7/Garrison | Lost 10 parts (2p3n2u3w) 10141 | -7/Garrison | Destroyed 8 combat bots 10249 | -7/Garrison | System corruption reached 10% 10417 | -7/Garrison | Discovered new exit (range 10) 10439 | -7/Garrison | Expanded RIF knowledge: Robot Detection 10551 | -7/Garrison | System corruption reached 30% 10562 | -7/Garrison | Triggered checkpoint 10630 | -7/Garrison | Triggered checkpoint 10736 | -7/Garrison | Triggered checkpoint 10763 | -7/Garrison | X0-1V1 mutated your Propulsion slot to Utility slot 10779 | -7/Garrison | Garrison Relay disabled 10804 | -7/Garrison | Build established: Scavenger-Tank 10938 | -7/Garrison | Heavy support dispatched to Factory 10967 | -7/Garrison | Discovered new exit (range 12) 11111 | -7/Garrison | X0-1V1 sent you into danger 11196 | -7/Garrison | X0-1V1 mutated your Weapon slot to Propulsion slot 11316 | -7/Garrison | Found embedded Infiltrators 11377 | -7/Garrison | X0-1V1 rewrote Guardian 4a IFF filter 11494 | -7/Garrison | Triggered checkpoint 11554 | -7/Garrison | Garrison Relay disabled 11608 | -7/Garrison | Discovered new exit (range 10) 11665 | -7/Garrison | Expanded RIF knowledge: Code Merge 11728 | -7/Garrison | Entered Factory 11728 | -6/Factory | Accompanied by 4 allies 11728 | -6/Factory | Evolved 2 slots: Propulsion x1, Weapon x1 11740 | -6/Factory | X0-1V1 vaporized surrounding terrain (radius 22) 11790 | -6/Factory | X0-1V1 rewrote MB-9NT(x) IFF filter 11835 | -6/Factory | X0-1V1 sent you to a vault 11923 | -6/Factory | Discovered new exit (range 14) 12058 | -6/Factory | X0-1V1 sent you into danger 12161 | -6/Factory | Lost 4 parts (2n2w) 12458 | -6/Factory | Cargo convoy interrupted 12489 | -6/Factory | X0-1V1 whisked you away to safety 12545 | -6/Factory | Lost 5 parts (3n1u1w) 12716 | -6/Factory | Identified exit to Garrison 12716 | -6/Factory | Entered Garrison 12716 | -6/Garrison | Discovered recently destroyed garrison 12974 | -6/Garrison | Discovered new exit (range 14) 13056 | -6/Garrison | Discovered new exit (range 51) 13056 | -6/Garrison | Discovered new exit (range 40) 13056 | -6/Garrison | Discovered new exit (range 16) 13184 | -6/Garrison | X0-1V1 destroyed Phase Generator 13184 | -6/Garrison | Phase Generator disabled 13321 | -6/Garrison | Expanded RIF knowledge: Hotswap 13663 | -6/Garrison | Build established: Commander-Tank 13799 | -6/Garrison | System corruption reached 10% 14245 | -6/Garrison | Entered Factory 14245 | -5/Factory | Accompanied by 12 allies 14245 | -5/Factory | Evolved 2 slots: Propulsion x1, Utility x1 14541 | -5/Factory | Discovered new exit (range 10) 14571 | -5/Factory | Entered Extension 14571 | -5/Extension | Accompanied by 12 allies 14676 | -5/Extension | Warlord forces began an assault 14734 | -5/Extension | Spotted B-75 Beast 14740 | -5/Extension | Destroyed B-75 Beast 14790 | -5/Extension | Lost 3 allies 14954 | -5/Extension | Rescued a captive Derelict 14955 | -5/Extension | Rescued a captive Derelict 14957 | -5/Extension | X0-1V1 announced a LAN party 15002 | -5/Extension | Rescued a captive Derelict 15003 | -5/Extension | Rescued a captive Derelict 15014 | -5/Extension | Expanded RIF knowledge: Watcher Feeds 15056 | -5/Extension | System corruption reached 10% 15228 | -5/Extension | Rescued a captive Derelict 15229 | -5/Extension | Rescued a captive Derelict 15382 | -5/Extension | Rescued A7 15603 | -5/Extension | Rescued a captive Derelict 15819 | -5/Extension | Rescued a captive Derelict 15820 | -5/Extension | Rescued a captive Derelict 16128 | -5/Extension | X0-1V1 rewrote Slayer 5a IFF filter 16251 | -5/Extension | Discovered new exit (range 10) 16256 | -5/Extension | Discovered new exit (range 6) 16406 | -5/Extension | Entered Cetus 16406 | -5/Cetus | Accompanied by 26 allies (A7) 16411 | -5/Cetus | Acquired a Cetus Manufacturing Module code from A7 16429 | -5/Cetus | Spotted Cetus Guard 16429 | -5/Cetus | Spotted Cetus Guard 16433 | -5/Cetus | Spotted Cetus Guard 16434 | -5/Cetus | Spotted Cetus Guard 16442 | -5/Cetus | Allies destroyed Cetus Guard 16444 | -5/Cetus | Allies destroyed Cetus Guard 16447 | -5/Cetus | Allies destroyed Cetus Guard 16455 | -5/Cetus | Allies destroyed Cetus Guard 16471 | -5/Cetus | Lost 4 allies 16508 | -5/Cetus | X0-1V1 mutated your Utility slot to Propulsion slot 16629 | -5/Cetus | Escorted A7 to Cetus Mainframe 16647 | -5/Cetus | Started Cetus Manufacturing Module 16672 | -5/Cetus | Manufactured an Enhanced Grunt 16697 | -5/Cetus | Manufactured an Enhanced Grunt 16702 | -5/Cetus | Discovered new exit (range 16) 16722 | -5/Cetus | Manufactured an Enhanced Grunt 16728 | -5/Cetus | X0-1V1 activates XOMVISION 16747 | -5/Cetus | Manufactured an Enhanced Grunt 16755 | -5/Cetus | Spotted Cetus Guard 16755 | -5/Cetus | Spotted Cetus Guard 16759 | -5/Cetus | Spotted Cetus Guard 16759 | -5/Cetus | Spotted Cetus Guard 16767 | -5/Cetus | Destroyed Cetus Guard 16772 | -5/Cetus | Manufactured an Enhanced Grunt 16775 | -5/Cetus | Allies destroyed Cetus Guard 16781 | -5/Cetus | Allies destroyed Cetus Guard 16788 | -5/Cetus | Allies destroyed Cetus Guard 16790 | -5/Cetus | Discovered new exit (range 15) 16806 | -5/Cetus | Lost 6 allies 16806 | -5/Cetus | Met Revision 17 16991 | -5/Cetus | Entered Archives 16991 | -5/Archives | Accompanied by 19 allies (A7) 16996 | -5/Archives | Received a hacking code to weaken MAIN.C 17037 | -5/Archives | Discovered new exit (range 15) 17093 | -5/Archives | Entered Hub_04(d) 17093 | -5/Hub_04(d) | Accompanied by 16 allies 17120 | -5/Hub_04(d) | Garrison activated, responded to threat 17197 | -5/Hub_04(d) | Lost 7 allies 17323 | -5/Hub_04(d) | Discovered new exit (range 8) 17336 | -5/Hub_04(d) | X0-1V1 enhanced Transport squad support 17337 | -5/Hub_04(d) | Garrison activated, responded to threat 17420 | -5/Hub_04(d) | Build established: Scavenger-Tank 17448 | -5/Hub_04(d) | Discovered new exit (range 5) 17543 | -5/Hub_04(d) | Network Hub disabled 17562 | -5/Hub_04(d) | Spotted Lightning 17562 | -5/Hub_04(d) | Spotted Lightning 17564 | -5/Hub_04(d) | Spotted Lightning 17565 | -5/Hub_04(d) | X0-1V1 sent hostile Fireman (x2) 17605 | -5/Hub_04(d) | Destroyed Lightning 17635 | -5/Hub_04(d) | Destroyed Lightning 17639 | -5/Hub_04(d) | Garrison activated, responded to threat 17642 | -5/Hub_04(d) | Destroyed Lightning 17705 | -5/Hub_04(d) | Destroyed 7 combat bots 17709 | -5/Hub_04(d) | Identified exit to Garrison 17709 | -5/Hub_04(d) | Entered Garrison 17726 | -5/Garrison | Lost 13 parts (2p1n6u4w) 17889 | -5/Garrison | Spotted B-75 Beast 17929 | -5/Garrison | Destroyed B-75 Beast 17946 | -5/Garrison | Heavy support dispatched to Factory 17955 | -5/Garrison | Lost 6 parts (2p1n1u2w) 18231 | -5/Garrison | X0-1V1 vaporized surrounding terrain (radius 19) 18236 | -5/Garrison | Triggered checkpoint 18251 | -5/Garrison | Triggered checkpoint 18256 | -5/Garrison | Triggered checkpoint 18267 | -5/Garrison | X0-1V1 sent allied Knight (x1) 18269 | -5/Garrison | System corruption reached 30% 18271 | -5/Garrison | Triggered checkpoint 18290 | -5/Garrison | Lost 3 allies 18351 | -5/Garrison | Triggered checkpoint 18411 | -5/Garrison | Expanded RIF knowledge: Alert ID Control 18430 | -5/Garrison | Core integrity fell below 50% 18494 | -5/Garrison | Lost 3 parts (3n) 18528 | -5/Garrison | Heavy support dispatched to Factory 18665 | -5/Garrison | Triggered checkpoint 18686 | -5/Garrison | Garrison Relay disabled 18988 | -5/Garrison | Core integrity restored by X0-1V1 (+236) 19025 | -5/Garrison | H-XX Assembler disabled 19056 | -5/Garrison | Lost 3 allies 19134 | -5/Garrison | Discovered new exit (range 6) 19143 | -5/Garrison | Triggered checkpoint 19366 | -5/Garrison | Discovered new exit (range 5) 19407 | -5/Garrison | Core integrity restored by X0-1V1 (+225) 19453 | -5/Garrison | Triggered checkpoint 19543 | -5/Garrison | Discovered new exit (range 14) 19581 | -5/Garrison | Triggered checkpoint 19611 | -5/Garrison | X0-1V1 vaporized surrounding terrain (radius 19) 19625 | -5/Garrison | X0-1V1 mutated your Propulsion slot to Weapon slot 19717 | -5/Garrison | Entered Factory 19717 | -4/Factory | Evolved 2 slots: Power x1, Propulsion x1 19817 | -4/Factory | X0-1V1 added 0b10 threat records associated with you (considerable) 19884 | -4/Factory | Discovered new exit (range 10) 19967 | -4/Factory | First assault squad dispatched 19979 | -4/Factory | X0-1V1 upgraded hostiles (x1) 19995 | -4/Factory | Fabricated Enh. Quantum Rifle? 20041 | -4/Factory | X0-1V1 sent hostile H-71 Marshal (x1) 20098 | -4/Factory | System corruption reached 10% 20113 | -4/Factory | Build established: Scavenger-Gunner 20147 | -4/Factory | X0-1V1 sent allied P-70 Sage (x3) 20155 | -4/Factory | P-70 Sage assimilated hostile G-73 Enforcer 20169 | -4/Factory | System corruption reached 30% 20184 | -4/Factory | Destroyed 7 combat bots 20185 | -4/Factory | Lost 11 parts (2p3n1u5w) 20239 | -4/Factory | X0-1V1 upgraded hostiles (x1) 20291 | -4/Factory | Lost 4 parts (1p1n2w) 20366 | -4/Factory | Released all parts (7) 20371 | -4/Factory | Core integrity fell below 50% 20387 | -4/Factory | Lost 8 parts (2p3n1u2w) 20398 | -4/Factory | Core integrity fell below 20% 20471 | -4/Factory | Adv. Surge Thruster reconfigured into Item Mimic 20475 | -4/Factory | Identified exit to Research 20475 | -4/Factory | X0-1V1 revealed exit location to -3/Research 20478 | -4/Factory | X0-1V1 mutated your Propulsion slot to Utility slot 20509 | -4/Factory | Lgt. Quantum Reactor reconfigured into Item Mimic 20534 | -4/Factory | X0-1V1 redirected Transport squads to designated parking area 20543 | -4/Factory | Spotted B-86 Titan 20547 | -4/Factory | Discovered exit to Research (range 7) 20551 | -4/Factory | Entered Research 20551 | -3/Research | Evolved 2 slots: Propulsion x1, Utility x1 20562 | -3/Research | Identified exit to Armory 20562 | -3/Research | Identified exit to Quarantine 20565 | -3/Research | X0-1V1 released a cloud of subatomizers 20580 | -3/Research | X0-1V1 activates XOMVISION 20598 | -3/Research | X0-1V1 sent you to a vault 20736 | -3/Research | Lost 3 allies 20751 | -3/Research | Revision forces began assault on 0b10 20755 | -3/Research | Spotted B-86 Titan 20785 | -3/Research | Spotted B-90 Cyclops 20836 | -3/Research | Core integrity fell below 50% 20836 | -3/Research | Entered Quarantine 20840 | -3/Quarantine | Lost 5 parts (4n1u) 20900 | -3/Quarantine | Core integrity fell below 20% 20916 | -3/Quarantine | Destroyed by H-77 Assassin with Coil Gun Last Messages --------------- Penetrated by Slug. X0-1V1's Piety Tracker destroyed. X0-1V1 is mildly amused. DFM:=FVXTP5=0RKL=B,N G-67 Veteran destroyed. X0-1V1: "One less obstacle for my toy on its journey to the highest levels of glorious entertainment." Penetrated by Slug. Slug penetrates Wall. K-01 Serf collects debris. Slug penetrates Wall. Penetrated by Slug. Slug penetrates K-01 Serf. K-01 Serf destroyed. Slug penetrates Wall. X0-1V1 makes it rain matter. Slug penetrates Wall. Penetrated by Slug. X0-1V1 snickers! Map ----- +----------------------------------------------------+ | ?????????????????????????????????????????????????? | | ?????????????????????????????????????????????????? | | ?????????????????????????????????????????????????? | | ?????????????????????????????????????????????????? | | ?????????????????????????????????????????????????? | | ?????????????????????????????????????????????????? | | ?????????????????????????????????????????????????? | | ?????????????????????????????????????????????????? | | ?????????????????????????????????????????????????? | | ?????????????????????????????????????????????????? | | ?????????????????????????????????????????????????? | | ?????????????????????????????????????????????????? | | ?????????????????????????###+###?????????????????? | | ????????????????????????? k??????????????????? | | ????????????????????????# ??????????????????? | | ???????????????????????? ???????????????????? | | ????????????????????????#h ???????????????????? | | ????????????????????????# h#???????????????????? | | ????????????????????????# #???????????????????? | | ????????????????????????# #???????????????????? | | ????????????????????????# #???????????????????? | | ????????????????????????# %#???????????????????? | | ????????????????????????# % #???????????????????? | | ????????????????????????#k h #???????????????????? | | ????????????????????????# #???????????????????? | | ????????? ??????????????#@ #???????????????????? | | ??????""" ??????????????#%A #???????????????????? | | ???????"" ??????????????# % R#???????????????????? | | ??????? ?????????????# % #???????????????????? | | ???????"" ?????????????#h #???????????????????? | | ???? """ ?????????????# #???????????????????? | | ???# """ #####????????# #???????????????????? | | ??? #????????# #???????????????????? | | ?? """ ########## #???????????????????? | | """ [ #???????????????????? | | = """ !% #???????????????????? | | ???# ! %!## ?????????? | | ???# """ + """????????????? | | ???#= """ ################ """????????????? | | #### """ #?????????????????????????????????? | | # "" #?????????????????????????????????? | | #""" """ #? ???????????????????????????????? | | #"T "" " ??????????????????????????????? | | #""" """ #?????????????????????????????????? | | # "" #?????????????????????????????????? | | #### """ #?????????????????????????????????? | | ??# """ #?????????????????????????????????? | | # """ #########?????????????????????????? | | "" # # ?????????????????????????? | | "" # # ????????????????????????? | +----------------------------------------------------+ Best States ------------- Heat Dissipation 174 Energy Generation 45 Energy Capacity 2020 Matter Stores 800 Matter Capacity 800 Sight Range 21 Terrain Scan Density 10 Jamming Range 16 Armor Coverage 450 Resistance: TH 10 Weapon Cycling 20 Phase Shifting 15 Evasion (%) 65 Targeting Accuracy 8 Recoil Reduction 6 Energy Filtering 50 Offensive Hacking 10 Relay Coupler Types 2 Relay Coupler Value 116 Item Schematics ----------------- Huge Storage Unit | -10/Materials | Hacked Robot Schematics ------------------ M-13 Machinist | -10/Materials | Hacked Fabricated ------------ Enh. Quantum Rifle | x2 | -4/Factory | Preloaded Repaired ---------- Huge Storage Unit | 46% | -10/Materials Studied --------- Lgt. Treads | -9/Materials | Hacked Grenade Launcher | -9/Materials | Hacked Hvy. Assault Rifle | -8/Materials | Hacked Missile Launcher | -8/Materials | Hacked Imp. Treads | -8/Materials | Hacked Minigun | -8/Materials | Hacked Ion Cannon | -8/Materials | Hacked Gauss Rifle | -8/Materials | Hacked Adv. Treads | -8/Materials | Hacked Arm. Huge Wheel | -4/Factory | Hacked Alien Tech Used ----------------- None Achievements -------------- None Challenges ------------ None Game ------ Seed RapidGuidanceRocket Manual? 0 Play Time 03:43:50 Cumulative 488.0 hours Start 2026.07.05 @ 17:53:07 End 2026.07.05 @ 23:42:04 Sessions 5 Manual Loads 0 Difficulty Rogue Special Mode None Game No. 295 Rogue 295 Adventurer 0 Explorer 0 Win Type - Total 32 Types 16/1/7/2/1/1/1/1/0/2 Lore% 95 Gallery% 91 Achievement% 82 Wizard Run 0 Options --------- Layout 1 ASCII 0 Keyboard 0 Movement Numpad Keybinds 0 Fullscreen 1 Font 24/Proggy Map View 50x35 Zoom Use 0% Tactical HUD 0 Map Filters NONE Filters NONE Steam 1 RUN: 05ed8f40-bf81-44cc-b517-02b3194d2b0d